[Event "Live Chess"]
[Site "Chess.com"]
[Date "2024.06.01"]
[Round "-"]
[White "chess5013"]
[Black "peteopeteo"]
[Result "1-0"]
[WhiteElo "1270"]
[BlackElo "1606"]
[TimeControl "300"]
[EndTime "11:24:17 PDT"]
[Termination "chess5013 won by resignation"]

1. d4 {[%clk 0:04:57.3]} 1... d5 {[%clk 0:04:59.2]} 2. Bf4 {[%clk 0:04:56.6]}
2... Bf5 {[%clk 0:04:52.5]} 3. e3 {[%clk 0:04:55.4]} 3... Nf6 {[%clk 0:04:51.7]}
4. c3 {[%clk 0:04:54.9]} 4... e6 {[%clk 0:04:50.9]} 5. Nf3 {[%clk 0:04:53.8]}
5... Bd6 {[%clk 0:04:50.2]} 6. Bg3 {[%clk 0:04:52.3]} 6... Bxg3 {[%clk
0:04:43.3]} 7. hxg3 {[%clk 0:04:50.9]} 7... Nbd7 {[%clk 0:04:39.4]} 8. Bd3
{[%clk 0:04:50.3]} 8... Bxd3 {[%clk 0:04:33.8]} 9. Qxd3 {[%clk 0:04:49.3]} 9...
a6 {[%clk 0:04:31.1]} 10. Nbd2 {[%clk 0:04:47.1]} 10... Nf8 {[%clk 0:04:30.3]}
11. O-O-O {[%clk 0:04:42.5]} 11... Ng6 {[%clk 0:04:29.1]} 12. Ne5 {[%clk
0:04:34.4]} 12... Nxe5 {[%clk 0:04:27.3]} 13. dxe5 {[%clk 0:04:33.1]} 13... Nd7
{[%clk 0:04:22.3]} 14. Rxh7 {[%clk 0:04:31.3]} 14... Ke7 {[%clk 0:04:19.1]} 15.
Rdh1 {[%clk 0:04:24.8]} 15... Rxh7 {[%clk 0:04:13.3]} 16. Qxh7 {[%clk
0:04:21.8]} 16... Nxe5 {[%clk 0:04:11]} 17. Qxg7 {[%clk 0:04:11.5]} 17... Nd3+
{[%clk 0:04:09.2]} 18. Kc2 {[%clk 0:04:08.2]} 18... Nxf2 {[%clk 0:03:58.7]} 19.
Rf1 {[%clk 0:04:06.2]} 19... Qd6 {[%clk 0:03:49.3]} 20. Rxf2 {[%clk 0:04:01.9]}
20... Rf8 {[%clk 0:03:49]} 21. Qg5+ {[%clk 0:03:54.2]} 21... Kd7 {[%clk
0:03:46.2]} 22. Nf3 {[%clk 0:03:43.1]} 22... f6 {[%clk 0:03:38.4]} 23. Qg7+
{[%clk 0:03:40.8]} 23... Kc8 {[%clk 0:03:35]} 24. Nd4 {[%clk 0:03:37.8]} 24...
Rd8 {[%clk 0:03:20.1]} 25. Qxf6 {[%clk 0:03:30.8]} 25... c5 {[%clk 0:03:18.9]}
26. Qxe6+ {[%clk 0:03:28.6]} 26... Qxe6 {[%clk 0:03:17.8]} 27. Nxe6 {[%clk
0:03:27.9]} 27... Re8 {[%clk 0:03:17]} 28. Nxc5 {[%clk 0:03:23.4]} 28... Rxe3
{[%clk 0:03:16.3]} 29. Rf3 {[%clk 0:03:06]} 29... Re2+ {[%clk 0:03:14.8]} 30.
Kb3 {[%clk 0:03:05.1]} 30... Rxg2 {[%clk 0:03:13.9]} 31. Nd3 {[%clk 0:02:55.1]}
31... Rh2 {[%clk 0:03:02.9]} 32. Nf4 {[%clk 0:02:51.1]} 32... d4 {[%clk
0:02:39.2]} 33. cxd4 {[%clk 0:02:48.9]} 33... Rh6 {[%clk 0:02:36.4]} 34. Nd5
{[%clk 0:02:38.4]} 34... Rd6 {[%clk 0:02:29.6]} 35. Rf5 {[%clk 0:02:33.7]} 35...
Kd7 {[%clk 0:02:27.4]} 36. g4 {[%clk 0:02:24.4]} 36... Ke6 {[%clk 0:02:25.8]}
37. Rf6+ {[%clk 0:02:19.7]} 37... Kxd5 {[%clk 0:02:24.4]} 38. Rxd6+ {[%clk
0:02:18.2]} 38... Kxd6 {[%clk 0:02:24.3]} 39. g5 {[%clk 0:02:17.4]} 39... Ke6
{[%clk 0:02:23.7]} 40. Kc4 {[%clk 0:02:16.7]} 40... Kf5 {[%clk 0:02:22.7]} 41.
Kc5 {[%clk 0:02:11.9]} 41... Kxg5 {[%clk 0:02:20.8]} 42. Kb6 {[%clk 0:02:11.5]}
42... Kf5 {[%clk 0:02:20.1]} 43. Kxb7 {[%clk 0:02:11.1]} 43... Ke4 {[%clk
0:02:19.4]} 44. Kxa6 {[%clk 0:02:10.7]} 44... Kxd4 {[%clk 0:02:18.8]} 45. b4
{[%clk 0:02:09.4]} 45... Kc4 {[%clk 0:02:18.7]} 46. b5 {[%clk 0:02:08.5]} 46...
Kc5 {[%clk 0:02:18.4]} 47. b6 {[%clk 0:02:07.1]} 47... Kc6 {[%clk 0:02:18.3]}
48. Ka7 {[%clk 0:02:04.2]} 1-0

[Event "Live Chess"]
[Site "Chess.com"]
[Date "2024.06.01"]
[Round "-"]
[White "missedJariChance"]
[Black "OliWally08"]
[Result "0-1"]
[WhiteElo "1344"]
[BlackElo "1274"]
[TimeControl "300"]
[EndTime "11:24:29 PDT"]
[Termination "OliWally08 won by checkmate"]

1. b3 {[%clk 0:04:54]} 1... e6 {[%clk 0:04:52.8]} 2. Bb2 {[%clk 0:04:49.3]} 2...
Nf6 {[%clk 0:04:51.5]} 3. Nf3 {[%clk 0:04:47.8]} 3... b6 {[%clk 0:04:49.9]} 4.
e3 {[%clk 0:04:45.4]} 4... Bb7 {[%clk 0:04:48.4]} 5. Be2 {[%clk 0:04:43.5]} 5...
Be7 {[%clk 0:04:42.1]} 6. O-O {[%clk 0:04:40.6]} 6... O-O {[%clk 0:04:40.8]} 7.
c4 {[%clk 0:04:39.2]} 7... d5 {[%clk 0:04:39.4]} 8. cxd5 {[%clk 0:04:33]} 8...
Bxd5 {[%clk 0:04:37.6]} 9. Nc3 {[%clk 0:04:31.2]} 9... Bb7 {[%clk 0:04:33.4]}
10. d4 {[%clk 0:04:24.7]} 10... Bd6 {[%clk 0:04:06.9]} 11. Rc1 {[%clk
0:04:20.1]} 11... Re8 {[%clk 0:03:53.4]} 12. Re1 {[%clk 0:04:17.3]} 12... Nbd7
{[%clk 0:03:50.6]} 13. Bb5 {[%clk 0:04:14.4]} 13... c6 {[%clk 0:03:46.2]} 14.
Bd3 {[%clk 0:04:10.7]} 14... Nf8 {[%clk 0:03:43.8]} 15. e4 {[%clk 0:04:09.4]}
15... c5 {[%clk 0:03:23.8]} 16. e5 {[%clk 0:04:06.7]} 16... cxd4 {[%clk
0:03:13.8]} 17. Nxd4 {[%clk 0:03:55.6]} 17... Bc5 {[%clk 0:03:05.6]} 18. exf6
{[%clk 0:03:47.2]} 18... Bxd4 {[%clk 0:02:56.7]} 19. Be4 {[%clk 0:03:39.4]}
19... Bxe4 {[%clk 0:02:49.9]} 20. Nxe4 {[%clk 0:03:32.5]} 20... Bxb2 {[%clk
0:02:44.3]} 21. Qg4 {[%clk 0:03:24.5]} 21... Bxf6 {[%clk 0:02:32.9]} 22. Nxf6+
{[%clk 0:03:20.8]} 22... Qxf6 {[%clk 0:02:31.8]} 23. h3 {[%clk 0:03:14.5]} 23...
Ng6 {[%clk 0:02:30.4]} 24. Re3 {[%clk 0:03:11.4]} 24... Rec8 {[%clk 0:02:00.4]}
25. Rxc8+ {[%clk 0:03:06.1]} 25... Rxc8 {[%clk 0:02:00.3]} 26. Rd3 {[%clk
0:03:01.6]} 26... Rc1+ {[%clk 0:01:51.2]} 27. Kh2 {[%clk 0:03:00.3]} 27... Qe5+
{[%clk 0:01:48.3]} 28. g3 {[%clk 0:02:54.3]} 28... Qe1 {[%clk 0:01:37.5]} 29.
Rd8+ {[%clk 0:02:50.1]} 29... Nf8 {[%clk 0:01:36.7]} 30. Qf3 {[%clk 0:02:45.4]}
30... Qg1# {[%clk 0:01:33.6]} 0-1

[Event "Live Chess"]
[Site "Chess.com"]
[Date "2024.06.01"]
[Round "-"]
[White "Yarigo"]
[Black "jimwad"]
[Result "1-0"]
[WhiteElo "2335"]
[BlackElo "1249"]
[TimeControl "300"]
[EndTime "11:24:32 PDT"]
[Termination "Yarigo won by resignation"]

1. d4 {[%clk 0:04:54.4]} 1... d5 {[%clk 0:04:58.4]} 2. Nf3 {[%clk 0:04:53.2]}
2... Nf6 {[%clk 0:04:51.8]} 3. Bf4 {[%clk 0:04:51.5]} 3... Bf5 {[%clk
0:04:46.8]} 4. e3 {[%clk 0:04:50.7]} 4... e6 {[%clk 0:04:45.1]} 5. Bd3 {[%clk
0:04:49.2]} 5... Bxd3 {[%clk 0:04:43.7]} 6. Qxd3 {[%clk 0:04:46.3]} 6... Bd6
{[%clk 0:04:41.5]} 7. O-O {[%clk 0:04:43.9]} 7... Bxf4 {[%clk 0:04:39.8]} 8.
exf4 {[%clk 0:04:41.6]} 8... Nbd7 {[%clk 0:04:38.3]} 9. Nbd2 {[%clk 0:04:38.1]}
9... O-O {[%clk 0:04:36.6]} 10. Rae1 {[%clk 0:04:34]} 10... c5 {[%clk
0:04:33.6]} 11. c3 {[%clk 0:04:32.8]} 11... c4 {[%clk 0:04:32.2]} 12. Qc2 {[%clk
0:04:31.2]} 12... b5 {[%clk 0:04:30.8]} 13. f5 {[%clk 0:04:24.7]} 13... exf5
{[%clk 0:04:26]} 14. Qxf5 {[%clk 0:04:23]} 14... a6 {[%clk 0:04:21.5]} 15. Ne5
{[%clk 0:04:15.6]} 15... Nxe5 {[%clk 0:04:18.3]} 16. dxe5 {[%clk 0:04:14.3]}
16... Ne8 {[%clk 0:04:05.6]} 17. e6 {[%clk 0:04:04.2]} 17... fxe6 {[%clk
0:04:02]} 18. Qxe6+ {[%clk 0:04:02.5]} 18... Kh8 {[%clk 0:04:00.3]} 19. Nf3
{[%clk 0:03:58.3]} 19... Nf6 {[%clk 0:03:57.9]} 20. Re5 {[%clk 0:03:36.4]} 20...
Re8 {[%clk 0:03:51]} 21. Qc6 {[%clk 0:03:27.6]} 21... Rxe5 {[%clk 0:03:48.8]}
22. Nxe5 {[%clk 0:03:26.4]} 22... Qe8 {[%clk 0:03:32.8]} 23. Re1 {[%clk
0:03:19.3]} 23... Qxc6 {[%clk 0:03:23.2]} 24. Nxc6 {[%clk 0:03:17.5]} 24... h6
{[%clk 0:03:15.2]} 25. f3 {[%clk 0:03:12.3]} 25... Rc8 {[%clk 0:03:02.5]} 26.
Re6 {[%clk 0:03:01.2]} 26... Nh7 {[%clk 0:02:38.4]} 27. Ne7 {[%clk 0:02:54.7]}
27... Ra8 {[%clk 0:02:25.9]} 28. Nxd5 {[%clk 0:02:51.6]} 28... Nf6 {[%clk
0:02:23]} 29. Nxf6 {[%clk 0:02:49.1]} 29... gxf6 {[%clk 0:02:22]} 30. Rxf6
{[%clk 0:02:48.5]} 30... Rd8 {[%clk 0:02:20.9]} 1-0

[Event "Live Chess"]
[Site "Chess.com"]
[Date "2024.06.01"]
[Round "-"]
[White "Cruiseylee78"]
[Black "SimonB4a"]
[Result "0-1"]
[WhiteElo "1703"]
[BlackElo "2167"]
[TimeControl "300"]
[EndTime "11:24:46 PDT"]
[Termination "SimonB4a won by resignation"]

1. d4 {[%clk 0:04:57.6]} 1... e6 {[%clk 0:04:59]} 2. Bf4 {[%clk 0:04:51.9]} 2...
d5 {[%clk 0:04:57.8]} 3. e3 {[%clk 0:04:50.9]} 3... Bd6 {[%clk 0:04:56.8]} 4.
Bg3 {[%clk 0:04:44.8]} 4... Nf6 {[%clk 0:04:55.6]} 5. Nf3 {[%clk 0:04:43.5]}
5... O-O {[%clk 0:04:54.4]} 6. Bd3 {[%clk 0:04:42.9]} 6... Ne4 {[%clk
0:04:51.9]} 7. Nbd2 {[%clk 0:04:41.5]} 7... f5 {[%clk 0:04:43.9]} 8. c3 {[%clk
0:04:39.6]} 8... c6 {[%clk 0:04:39.4]} 9. Ne5 {[%clk 0:04:24.5]} 9... Nxg3
{[%clk 0:04:35.8]} 10. hxg3 {[%clk 0:04:23.3]} 10... Bxe5 {[%clk 0:04:34.7]} 11.
dxe5 {[%clk 0:04:23.2]} 11... Qb6 {[%clk 0:04:31.6]} 12. Qc2 {[%clk 0:04:21.4]}
12... Nd7 {[%clk 0:04:24.9]} 13. f4 {[%clk 0:04:19.2]} 13... Qxe3+ {[%clk
0:04:21.3]} 14. Kd1 {[%clk 0:03:58.7]} 14... Qxg3 {[%clk 0:04:12.3]} 15. Nf3
{[%clk 0:03:30.9]} 15... Qxf4 {[%clk 0:04:01.8]} 16. Rh4 {[%clk 0:03:28]} 16...
Qg3 {[%clk 0:03:53.4]} 17. Rh3 {[%clk 0:02:50.2]} 17... Qg6 {[%clk 0:03:44.7]}
18. Kd2 {[%clk 0:02:48.5]} 18... Re8 {[%clk 0:03:22.6]} 19. g3 {[%clk
0:02:43.1]} 19... Nf8 {[%clk 0:03:14.4]} 20. Rah1 {[%clk 0:02:40.7]} 20... a5
{[%clk 0:03:10.3]} 21. Kc1 {[%clk 0:02:39.9]} 21... b6 {[%clk 0:03:05.7]} 22. g4
{[%clk 0:02:33.7]} 22... Qxg4 {[%clk 0:02:51.1]} 23. Nh4 {[%clk 0:02:21]} 23...
Ba6 {[%clk 0:02:41.4]} 24. Bxa6 {[%clk 0:02:08.6]} 24... Rxa6 {[%clk 0:02:40.1]}
25. Qf2 {[%clk 0:02:05.4]} 25... Qc4 {[%clk 0:02:24.6]} 26. b3 {[%clk
0:01:54.2]} 26... Qc5 {[%clk 0:02:18.5]} 27. Qg3 {[%clk 0:01:48.9]} 27... Ra7
{[%clk 0:02:08.8]} 28. Rg1 {[%clk 0:01:46.7]} 28... a4 {[%clk 0:01:57.7]} 29. b4
{[%clk 0:01:43.7]} 29... Qc4 {[%clk 0:01:55.9]} 30. Rh2 {[%clk 0:01:27]} 30...
d4 {[%clk 0:01:52]} 31. Rhg2 {[%clk 0:00:35.5]} 31... Qxc3+ {[%clk 0:01:47.2]}
32. Qxc3 {[%clk 0:00:34.2]} 32... dxc3 {[%clk 0:01:46.5]} 0-1

[Event "Live Chess"]
[Site "Chess.com"]
[Date "2024.06.01"]
[Round "-"]
[White "EgbertIII"]
[Black "Dhaydon19"]
[Result "0-1"]
[WhiteElo "1445"]
[BlackElo "2682"]
[TimeControl "300"]
[EndTime "11:24:48 PDT"]
[Termination "Dhaydon19 won by resignation"]

1. b4 {[%clk 0:04:57.8]} 1... c6 {[%clk 0:04:59.7]} 2. Bb2 {[%clk 0:04:56.1]}
2... d5 {[%clk 0:04:59.5]} 3. Nf3 {[%clk 0:04:53]} 3... Nf6 {[%clk 0:04:59.2]}
4. e3 {[%clk 0:04:51.5]} 4... g6 {[%clk 0:04:58.9]} 5. a3 {[%clk 0:04:49]} 5...
Bg7 {[%clk 0:04:58.4]} 6. c4 {[%clk 0:04:47.1]} 6... O-O {[%clk 0:04:58.1]} 7.
cxd5 {[%clk 0:04:46]} 7... cxd5 {[%clk 0:04:57.6]} 8. d4 {[%clk 0:04:42.8]} 8...
Nc6 {[%clk 0:04:56.2]} 9. Be2 {[%clk 0:04:39.7]} 9... Bg4 {[%clk 0:04:55.7]} 10.
h3 {[%clk 0:04:37.5]} 10... Bxf3 {[%clk 0:04:53.8]} 11. Bxf3 {[%clk 0:04:36.1]}
11... e6 {[%clk 0:04:53.3]} 12. Nd2 {[%clk 0:04:34.1]} 12... Rc8 {[%clk
0:04:52.9]} 13. O-O {[%clk 0:04:31.8]} 13... Ne7 {[%clk 0:04:52.1]} 14. Nb3
{[%clk 0:04:28.3]} 14... Nf5 {[%clk 0:04:51.1]} 15. Nc5 {[%clk 0:04:24.6]} 15...
Nd6 {[%clk 0:04:50.2]} 16. Rc1 {[%clk 0:04:20.1]} 16... b6 {[%clk 0:04:49.3]}
17. Nd3 {[%clk 0:04:15.8]} 17... Qd7 {[%clk 0:04:48.7]} 18. Ne5 {[%clk
0:04:13.8]} 18... Qb7 {[%clk 0:04:48.3]} 19. Qa4 {[%clk 0:03:43.7]} 19... a6
{[%clk 0:04:32.4]} 20. Qb3 {[%clk 0:03:12.8]} 20... Nfe4 {[%clk 0:04:29]} 21.
Rxc8 {[%clk 0:03:01.3]} 21... Rxc8 {[%clk 0:04:26.3]} 22. Rc1 {[%clk 0:02:56.1]}
22... f6 {[%clk 0:04:22.6]} 23. Nc6 {[%clk 0:02:45.4]} 23... Rxc6 {[%clk
0:04:19.7]} 24. Rxc6 {[%clk 0:02:41.7]} 24... Qxc6 {[%clk 0:04:18.8]} 25. Bg4
{[%clk 0:02:37.4]} 25... Nc4 {[%clk 0:04:14]} 26. f3 {[%clk 0:02:31.4]} 26...
Ned2 {[%clk 0:04:11.4]} 27. Qc3 {[%clk 0:02:23.5]} 27... f5 {[%clk 0:04:10.4]}
0-1

[Event "Live Chess"]
[Site "Chess.com"]
[Date "2024.06.01"]
[Round "-"]
[White "Sokolik_UA"]
[Black "degringolade64"]
[Result "0-1"]
[WhiteElo "803"]
[BlackElo "2067"]
[TimeControl "300"]
[EndTime "11:24:57 PDT"]
[Termination "degringolade64 won by checkmate"]

1. e4 {[%clk 0:04:51.8]} 1... e5 {[%clk 0:04:58.7]} 2. d4 {[%clk 0:04:51.3]}
2... exd4 {[%clk 0:04:56.8]} 3. Qxd4 {[%clk 0:04:49.6]} 3... Nc6 {[%clk
0:04:54.3]} 4. Qe3 {[%clk 0:04:49.2]} 4... Nf6 {[%clk 0:04:52.8]} 5. Nc3 {[%clk
0:04:48.9]} 5... Bb4 {[%clk 0:04:50.7]} 6. h3 {[%clk 0:04:46.8]} 6... O-O {[%clk
0:04:47.3]} 7. Bd3 {[%clk 0:04:45.7]} 7... Re8 {[%clk 0:04:41.8]} 8. Bd2 {[%clk
0:04:43.9]} 8... d5 {[%clk 0:04:32.9]} 9. f3 {[%clk 0:04:43]} 9... Bxc3 {[%clk
0:04:25.8]} 10. Bxc3 {[%clk 0:04:41.8]} 10... d4 {[%clk 0:04:24.8]} 11. Bxd4
{[%clk 0:04:41.2]} 11... Qxd4 {[%clk 0:04:22.5]} 12. Qd2 {[%clk 0:04:32.6]}
12... Qxb2 {[%clk 0:04:11.7]} 13. Qc1 {[%clk 0:04:31.4]} 13... Qc3+ {[%clk
0:04:09.2]} 14. Kd1 {[%clk 0:04:27.6]} 14... Nb4 {[%clk 0:04:05.5]} 15. Ne2
{[%clk 0:04:24.2]} 15... Qc5 {[%clk 0:03:45.3]} 16. g4 {[%clk 0:04:19]} 16...
Be6 {[%clk 0:03:36.6]} 17. h4 {[%clk 0:04:12.4]} 17... Rad8 {[%clk 0:03:34.5]}
18. h5 {[%clk 0:04:09.4]} 18... Nxd3 {[%clk 0:03:27.1]} 19. cxd3 {[%clk
0:04:07]} 19... Rxd3+ {[%clk 0:03:26.6]} 20. Ke1 {[%clk 0:04:05.5]} 20... Qb4+
{[%clk 0:03:06.4]} 21. Kf1 {[%clk 0:04:01.7]} 21... Rxf3+ {[%clk 0:03:04.6]} 22.
Kg2 {[%clk 0:03:59.5]} 22... Qxe4 {[%clk 0:03:03.1]} 23. h6 {[%clk 0:03:57.5]}
23... Qxg4+ {[%clk 0:03:01.6]} 24. Ng3 {[%clk 0:03:54.8]} 24... Rxg3+ {[%clk
0:02:59.6]} 25. Kf2 {[%clk 0:03:54.3]} 25... Qf3+ {[%clk 0:02:55.6]} 26. Ke1
{[%clk 0:03:53.1]} 26... Bg4+ {[%clk 0:02:48.9]} 27. Kd2 {[%clk 0:03:48.9]}
27... Qd3# {[%clk 0:02:47.9]} 0-1

[Event "Live Chess"]
[Site "Chess.com"]
[Date "2024.06.01"]
[Round "-"]
[White "Queensandpawns"]
[Black "GerardATHart"]
[Result "1-0"]
[WhiteElo "2450"]
[BlackElo "1414"]
[TimeControl "300"]
[EndTime "11:25:06 PDT"]
[Termination "Queensandpawns won by resignation"]

1. d4 {[%clk 0:04:58]} 1... f5 {[%clk 0:04:55.7]} 2. Nc3 {[%clk 0:04:57.9]} 2...
Nf6 {[%clk 0:04:53.6]} 3. Bg5 {[%clk 0:04:57.2]} 3... Ne4 {[%clk 0:04:46.8]} 4.
Nxe4 {[%clk 0:04:55.6]} 4... fxe4 {[%clk 0:04:45.3]} 5. e3 {[%clk 0:04:55.2]}
5... d5 {[%clk 0:04:43.2]} 6. h4 {[%clk 0:04:53.8]} 6... g6 {[%clk 0:04:40.8]}
7. h5 {[%clk 0:04:52.9]} 7... Bf5 {[%clk 0:04:38.4]} 8. g4 {[%clk 0:04:51.5]}
8... h6 {[%clk 0:04:25.4]} 9. gxf5 {[%clk 0:04:43.7]} 9... hxg5 {[%clk
0:04:20.9]} 10. fxg6 {[%clk 0:04:43.6]} 10... Nd7 {[%clk 0:04:14.9]} 11. Qg4
{[%clk 0:04:42.1]} 11... Bh6 {[%clk 0:04:09.9]} 12. Qe6 {[%clk 0:04:40.6]} 12...
Nf6 {[%clk 0:04:04.1]} 13. Qf7+ {[%clk 0:04:39.6]} 13... Kd7 {[%clk 0:03:59.8]}
14. g7 {[%clk 0:04:35]} 14... Rg8 {[%clk 0:03:44.9]} 15. Bh3+ {[%clk 0:04:16.4]}
15... g4 {[%clk 0:03:25.8]} 16. Bxg4+ {[%clk 0:04:14.3]} 16... Nxg4 {[%clk
0:03:21.3]} 17. Qxd5+ {[%clk 0:04:13.9]} 17... Ke8 {[%clk 0:03:07.3]} 18. Qxg8+
{[%clk 0:04:12.7]} 1-0

[Event "Live Chess"]
[Site "Chess.com"]
[Date "2024.06.01"]
[Round "-"]
[White "jonny_dzz"]
[Black "ProfPoisson"]
[Result "0-1"]
[WhiteElo "1871"]
[BlackElo "1252"]
[TimeControl "300"]
[EndTime "11:25:09 PDT"]
[Termination "ProfPoisson won by checkmate"]

1. d4 {[%clk 0:04:59.3]} 1... e6 {[%clk 0:04:55.5]} 2. e3 {[%clk 0:04:59.2]}
2... f5 {[%clk 0:04:53.9]} 3. f4 {[%clk 0:04:58.3]} 3... Nf6 {[%clk 0:04:52.7]}
4. Bd3 {[%clk 0:04:57.6]} 4... b6 {[%clk 0:04:44.1]} 5. Nf3 {[%clk 0:04:56.4]}
5... Bb7 {[%clk 0:04:42.8]} 6. O-O {[%clk 0:04:55.5]} 6... Qe7 {[%clk
0:04:29.5]} 7. Nbd2 {[%clk 0:04:54.1]} 7... d6 {[%clk 0:04:28.1]} 8. c3 {[%clk
0:04:52.8]} 8... Nbd7 {[%clk 0:04:26.8]} 9. Qc2 {[%clk 0:04:48.5]} 9... Ng4
{[%clk 0:04:17.6]} 10. Re1 {[%clk 0:04:44]} 10... Bxf3 {[%clk 0:04:09.9]} 11.
Nxf3 {[%clk 0:04:42.4]} 11... h5 {[%clk 0:03:55]} 12. e4 {[%clk 0:04:40.9]}
12... fxe4 {[%clk 0:03:51.3]} 13. Bxe4 {[%clk 0:04:39.4]} 13... d5 {[%clk
0:03:48.5]} 14. Bxd5 {[%clk 0:04:37.1]} 14... O-O-O {[%clk 0:03:27.9]} 15. Bxe6
{[%clk 0:04:31.6]} 15... Qd6 {[%clk 0:03:21.3]} 16. Bxd7+ {[%clk 0:04:16.8]}
16... Rxd7 {[%clk 0:03:15.2]} 17. Ne5 {[%clk 0:04:16.7]} 17... Qf6 {[%clk
0:02:52.6]} 18. Nxd7 {[%clk 0:04:11.7]} 18... Qh4 {[%clk 0:02:51.1]} 19. Be3
{[%clk 0:03:57]} 19... Qxh2+ {[%clk 0:02:43.3]} 20. Kf1 {[%clk 0:03:54.9]} 20...
Nxe3+ {[%clk 0:02:29.9]} 21. Rxe3 {[%clk 0:03:52.9]} 21... Qh1+ {[%clk
0:02:28.2]} 22. Kf2 {[%clk 0:03:50.7]} 22... Qxa1 {[%clk 0:02:11.3]} 23. Nxf8
{[%clk 0:03:48.8]} 23... Rxf8 {[%clk 0:02:07.7]} 24. a3 {[%clk 0:03:36.9]} 24...
Rxf4+ {[%clk 0:02:05.5]} 25. Kg3 {[%clk 0:03:32.2]} 25... Rg4+ {[%clk
0:02:01.2]} 26. Kf3 {[%clk 0:03:30.9]} 26... Qf1+ {[%clk 0:01:50.3]} 27. Qf2
{[%clk 0:03:27.1]} 27... Rf4+ {[%clk 0:01:33.8]} 28. Kxf4 {[%clk 0:03:25.4]}
28... Qxf2+ {[%clk 0:01:32.3]} 29. Rf3 {[%clk 0:03:22.8]} 29... Qxb2 {[%clk
0:01:29.1]} 30. a4 {[%clk 0:03:19.8]} 30... Qxg2 {[%clk 0:01:26.5]} 31. Ke3
{[%clk 0:03:16.3]} 31... g5 {[%clk 0:01:19.4]} 32. Rf8+ {[%clk 0:03:14.7]} 32...
Kb7 {[%clk 0:01:16.7]} 33. a5 {[%clk 0:03:13.5]} 33... bxa5 {[%clk 0:01:14]} 34.
Rf5 {[%clk 0:03:10.6]} 34... a4 {[%clk 0:01:12.3]} 35. Ra5 {[%clk 0:03:07.1]}
35... Qg3+ {[%clk 0:01:09.1]} 36. Kd2 {[%clk 0:03:05]} 36... Qf4+ {[%clk
0:01:06.3]} 37. Kd3 {[%clk 0:03:03.3]} 37... h4 {[%clk 0:01:05.6]} 38. Rxa4
{[%clk 0:03:01.9]} 38... h3 {[%clk 0:01:04.2]} 39. Rb4+ {[%clk 0:03:00.7]} 39...
Kc8 {[%clk 0:01:01.4]} 40. d5 {[%clk 0:02:58.5]} 40... h2 {[%clk 0:00:59.7]} 41.
Rxf4 {[%clk 0:02:56]} 41... gxf4 {[%clk 0:00:57.6]} 42. Ke4 {[%clk 0:02:54.8]}
42... h1=Q+ {[%clk 0:00:56.6]} 43. Kxf4 {[%clk 0:02:54.7]} 43... Qxd5 {[%clk
0:00:54.6]} 44. Ke3 {[%clk 0:02:53.3]} 44... Kd7 {[%clk 0:00:53.3]} 45. Ke2
{[%clk 0:02:51.2]} 45... Ke6 {[%clk 0:00:52.2]} 46. Ke3 {[%clk 0:02:49.9]} 46...
Ke5 {[%clk 0:00:51.1]} 47. Ke2 {[%clk 0:02:46.8]} 47... Ke4 {[%clk 0:00:50]} 48.
Kf2 {[%clk 0:02:45.6]} 48... Qd3 {[%clk 0:00:48.7]} 49. Kg2 {[%clk 0:02:44.7]}
49... Qxc3 {[%clk 0:00:47.3]} 50. Kf2 {[%clk 0:02:43.2]} 50... Kf4 {[%clk
0:00:46.1]} 51. Kg2 {[%clk 0:02:42.2]} 51... Qd2+ {[%clk 0:00:44.5]} 52. Kh1
{[%clk 0:02:41]} 52... Kg3 {[%clk 0:00:41.2]} 53. Kg1 {[%clk 0:02:39.2]} 53...
Qg2# {[%clk 0:00:40.8]} 0-1

[Event "Live Chess"]
[Site "Chess.com"]
[Date "2024.06.01"]
[Round "-"]
[White "updatedopenings2024"]
[Black "Duke_of_Bebington"]
[Result "1-0"]
[WhiteElo "1940"]
[BlackElo "1621"]
[TimeControl "300"]
[EndTime "11:25:16 PDT"]
[Termination "updatedopenings2024 won by resignation"]

1. Nf3 {[%clk 0:04:58.2]} 1... d5 {[%clk 0:04:56]} 2. g3 {[%clk 0:04:58.1]} 2...
Nc6 {[%clk 0:04:47.5]} 3. Bg2 {[%clk 0:04:58]} 3... e5 {[%clk 0:04:46.8]} 4. O-O
{[%clk 0:04:57.9]} 4... Be6 {[%clk 0:04:45.7]} 5. d4 {[%clk 0:04:57.1]} 5... e4
{[%clk 0:04:43.9]} 6. Ne5 {[%clk 0:04:56.5]} 6... Nxe5 {[%clk 0:04:42.7]} 7.
dxe5 {[%clk 0:04:56.4]} 7... f6 {[%clk 0:04:37.6]} 8. exf6 {[%clk 0:04:55.6]}
8... Nxf6 {[%clk 0:04:37.5]} 9. c4 {[%clk 0:04:55.4]} 9... dxc4 {[%clk
0:04:32.7]} 10. Qa4+ {[%clk 0:04:53.6]} 10... c6 {[%clk 0:04:31.2]} 11. Nc3
{[%clk 0:04:51.6]} 11... b5 {[%clk 0:04:23.5]} 12. Qc2 {[%clk 0:04:49.8]} 12...
Bb4 {[%clk 0:04:18.1]} 13. Nxe4 {[%clk 0:04:48.5]} 13... Nxe4 {[%clk 0:04:14]}
14. Qxe4 {[%clk 0:04:48.4]} 14... Qf6 {[%clk 0:04:10.2]} 15. Qxc6+ {[%clk
0:04:47.1]} 15... Kf7 {[%clk 0:04:08.5]} 16. Qc7+ {[%clk 0:04:37.4]} 16... Kg6
{[%clk 0:04:06.3]} 17. Bf4 {[%clk 0:04:21]} 17... Rhc8 {[%clk 0:03:45.8]} 18.
Qb7 {[%clk 0:04:16.9]} 18... c3 {[%clk 0:03:36.7]} 19. bxc3 {[%clk 0:04:14.2]}
19... Bxc3 {[%clk 0:03:30.7]} 20. Rac1 {[%clk 0:04:13.4]} 20... b4 {[%clk
0:03:27.4]} 21. h4 {[%clk 0:04:10.3]} 21... h6 {[%clk 0:03:21.9]} 22. Qe4+
{[%clk 0:03:49.5]} 22... Bf5 {[%clk 0:03:18.8]} 23. Qf3 {[%clk 0:03:47.5]} 23...
Kh7 {[%clk 0:03:09.8]} 24. e4 {[%clk 0:03:45.5]} 24... Bd7 {[%clk 0:02:59.4]}
25. e5 {[%clk 0:03:44.7]} 25... Bxe5 {[%clk 0:02:55.8]} 26. Qe4+ {[%clk
0:03:41.8]} 26... Kh8 {[%clk 0:02:45.9]} 27. Bxe5 {[%clk 0:03:39.2]} 1-0

[Event "Live Chess"]
[Site "Chess.com"]
[Date "2024.06.01"]
[Round "-"]
[White "gmnorfolk"]
[Black "ogpin"]
[Result "0-1"]
[WhiteElo "2108"]
[BlackElo "2214"]
[TimeControl "300"]
[EndTime "11:25:18 PDT"]
[Termination "ogpin won by resignation"]

1. c4 {[%clk 0:04:57.3]} 1... a5 {[%clk 0:04:59.9]} 2. Nc3 {[%clk 0:04:55.1]}
2... Ra6 {[%clk 0:04:59.8]} 3. e4 {[%clk 0:04:52.8]} 3... e5 {[%clk 0:04:53.1]}
4. d4 {[%clk 0:04:52.7]} 4... exd4 {[%clk 0:04:52.1]} 5. Qxd4 {[%clk 0:04:50.7]}
5... Re6 {[%clk 0:04:48.1]} 6. f4 {[%clk 0:04:48.1]} 6... Nc6 {[%clk 0:04:47.3]}
7. Qd1 {[%clk 0:04:46.3]} 7... Bb4 {[%clk 0:04:46]} 8. Bd3 {[%clk 0:04:44.1]}
8... Nf6 {[%clk 0:04:35.1]} 9. f5 {[%clk 0:04:26.3]} 9... Rxe4+ {[%clk 0:04:24]}
10. Bxe4 {[%clk 0:04:22.1]} 10... Nxe4 {[%clk 0:04:23.9]} 11. Qe2 {[%clk
0:04:21.1]} 11... O-O {[%clk 0:04:23]} 12. Nf3 {[%clk 0:04:16.8]} 12... Nxc3
{[%clk 0:04:20.2]} 13. bxc3 {[%clk 0:04:15.6]} 13... Bxc3+ {[%clk 0:04:20.1]}
14. Bd2 {[%clk 0:04:14.8]} 14... Bxa1 {[%clk 0:04:19.3]} 15. O-O {[%clk
0:04:13.3]} 15... Nd4 {[%clk 0:04:15.6]} 16. Nxd4 {[%clk 0:04:09.7]} 16... Bxd4+
{[%clk 0:04:15.5]} 17. Kh1 {[%clk 0:04:08.6]} 17... Re8 {[%clk 0:04:14.3]} 18.
Qg4 {[%clk 0:04:04.3]} 18... Bf6 {[%clk 0:04:04.2]} 19. Bxa5 {[%clk 0:03:50]}
19... b6 {[%clk 0:04:02.3]} 20. Bd2 {[%clk 0:03:48.6]} 20... d5 {[%clk
0:04:01.5]} 0-1